fUSD/lending_fUSD_20250530
["ID","MTS","AMOUNT","RATE_DAILY","PERIOD"]
[363194033,1748619138235,-1032.71,0.00025205,2]
[363194034,1748619138245,-3547.4,0.00025205,2]
[363194035,1748619138258,-458.54,0.00025205,2]
[363194036,1748619138267,-982.85,0.00025205,2]
[363194037,1748619138276,-1005.97,0.00025205,2]
[363194038,1748619138286,-3804.58,0.00025205,2]
[363194039,1748619138296,-1623.36,0.00025205,2]
[363194040,1748619138307,-37354.79,0.00025205,2]
[363194041,1748619138318,-937.17,0.00025205,2]
[363194042,1748619138328,-753.84,0.00025205,2]
[363194043,1748619138339,-1215.02,0.00025205,2]
[363194044,1748619138350,-10069.56,0.00025205,2]
[363194045,1748619138360,-2424.56,0.00025205,2]
[363194046,1748619138370,-1684.99,0.00025205,2]
[363194047,1748619138381,-7476.47,0.00025205,2]
[363194048,1748619138392,-519.37,0.00025205,2]
[363194049,1748619138402,-628.41,0.00025205,2]
[363194050,1748619138413,-422.51,0.00025205,2]
[363194051,1748619138422,-868.93,0.00025205,2]
[363194052,1748619138432,-186.15343706,0.00025205,2]
[363194053,1748619138443,-1449.88,0.00025205,2]
[363194054,1748619138453,-14516.45,0.00025205,2]
[363194055,1748619138464,-4266.56,0.00025205,2]
[363194056,1748619138474,-1548.49,0.00025205,2]
[363194057,1748619138484,-830.49,0.00025205,2]
[363194058,1748619138494,-1978.38,0.00025205,2]
[363194059,1748619138504,-1884.76,0.00025205,2]
[363194060,1748619138514,-542.86,0.00025205,2]
[363194061,1748619138526,-593.44,0.00025205,2]
[363194062,1748619138535,-510.86,0.00025205,2]
[363194063,1748619138546,-1709.24,0.00025205,2]
[363194064,1748619138558,-2758.03,0.00025205,2]
[363194065,1748619138569,-420.0,0.00025205,2]
[363194066,1748619138579,-29722.14,0.00025205,2]
[363194067,1748619138588,-881.72,0.00025205,2]
[363194068,1748619138597,-1406.27,0.00025205,2]
[363194069,1748619138606,-1169.42,0.00025205,2]
[363194070,1748619138615,-1544.23,0.00025205,2]
[363194071,1748619138625,-826.36,0.00025205,2]
[363194072,1748619138635,-1175.33,0.00025205,2]
[363194073,1748619138646,-3295.64,0.00025205,2]
[363194074,1748619138656,-1761.11,0.00025205,2]
[363194075,1748619138667,-660.71,0.00025205,2]
[363194076,1748619138677,-3573.53,0.00025205,2]
[363194077,1748619138688,-738.85,0.00025205,2]
[363194078,1748619138698,-1034.84,0.00025205,2]
[363194079,1748619138708,-1151.03,0.00025205,2]
[363194080,1748619138719,-9251.83,0.00025205,2]
[363194081,1748619138729,-420.0,0.00025205,2]
[363194082,1748619138739,-772.03,0.00025205,2]
[363194083,1748619138750,-490.63,0.00025205,2]
[363194084,1748619138760,-720.83,0.00025205,2]
[363194085,1748619138770,-1360.32,0.00025205,2]
[363194086,1748619138781,-723.88,0.00025205,2]
[363194087,1748619138791,-567.24,0.00025205,2]
[363194088,1748619138803,-2486.32,0.00025205,2]
[363194089,1748619138817,-4470.51,0.00025205,2]
[363194090,1748619138828,-1446.13,0.00025205,2]
[363194091,1748619138839,-2304.2,0.00025205,2]
[363194092,1748619138851,-1389.12,0.00025205,2]
[363194093,1748619138862,-1054.71,0.00025205,2]
[363194094,1748619138871,-990.01,0.00025205,2]
[363194095,1748619138879,-1680.37,0.00025205,2]
[363194096,1748619138887,-521.76,0.00025205,2]
[363194097,1748619138897,-4095.54,0.00025205,2]
[363194098,1748619138904,-1486.66,0.00025205,2]
[363194099,1748619138912,-1336.51,0.00025205,2]
[363194100,1748619138919,-1487.37,0.00025205,2]
[363194101,1748619138927,-2771.35,0.00025205,2]
[363194102,1748619138935,-4189.49,0.00025205,2]
[363194103,1748619138943,-629.45,0.00025205,2]
[363194104,1748619138951,-2997.14,0.00025205,2]
[363194105,1748619138958,-1026.77,0.00025205,2]
[363194106,1748619138965,-1125.7,0.00025205,2]
[363194107,1748619138973,-614.16,0.00025205,2]
[363194108,1748619138983,-7561.37,0.00025205,2]
[363194109,1748619138993,-1258.89,0.00025205,2]
[363194110,1748619139003,-420.0,0.00025205,2]
[363194111,1748619139013,-1075.29,0.00025205,2]
[363194112,1748619139024,-760.57,0.00025205,2]
[363194113,1748619139035,-3180.63,0.00025205,2]
[363194114,1748619139045,-1927.78,0.00025205,2]
[363194115,1748619139058,-1656.75,0.00025205,2]
[363194116,1748619139068,-641.68,0.00025205,2]
[363194117,1748619139079,-420.0,0.00025205,2]
[363194118,1748619139089,-1318.91,0.00025205,2]
[363194119,1748619139100,-1139.98,0.00025205,2]
[363194120,1748619139112,-798.56,0.00025205,2]
[363194121,1748619139123,-1082.24,0.00025205,2]
[363194122,1748619139135,-718.05,0.00025205,2]
[363194123,1748619139145,-3419.97,0.00025205,2]
[363194124,1748619139156,-1074.24,0.00025205,2]
[363194125,1748619139167,-671.13,0.00025205,2]
[363194126,1748619139178,-1848.95,0.00025205,2]
[363194127,1748619139188,-2486.27,0.00025205,2]
[363194128,1748619139199,-1239.27,0.00025205,2]
[363194129,1748619139210,-420.0,0.00025205,2]
[363194130,1748619139221,-1822.33,0.00025205,2]
[363194131,1748619139231,-4083.38,0.00025205,2]
[363194132,1748619139242,-1501.86,0.00025205,2]
[363194133,1748619139252,-4025.56,0.00025205,2]
[363194134,1748619139261,-1358.16,0.00025205,2]
[363194135,1748619139271,-4868.11,0.00025205,2]
[363194136,1748619139282,-2713.7,0.00025205,2]
[363194137,1748619139292,-489.31,0.00025205,2]
[363194138,1748619139307,-742.91,0.00025205,2]
[363194139,1748619139317,-802.33,0.00025205,2]
[363194140,1748619139326,-937.93,0.00025205,2]
[363194141,1748619139338,-420.0,0.00025205,2]
[363194142,1748619139350,-2531.82,0.00025205,2]
[363194143,1748619139360,-420.0,0.00025205,2]
[363194144,1748619139371,-830.27,0.00025205,2]
[363194145,1748619139383,-703.73,0.00025205,2]
[363194146,1748619139394,-420.0,0.00025205,2]
[363194147,1748619139406,-7051.39,0.00025205,2]
[363194148,1748619139417,-622.77,0.00025205,2]
[363194149,1748619139428,-1538.8,0.00025205,2]
[363194150,1748619139439,-961.82,0.00025205,2]
[363194151,1748619139450,-19030.44,0.00025205,2]
[363194152,1748619139460,-1325.56,0.00025205,2]
[363194153,1748619139470,-2716.47,0.00025205,2]
[363194154,1748619139481,-466.46147891,0.00025205,2]
[363194155,1748619139492,-702.43,0.00025205,2]
[363194156,1748619139503,-735.86,0.00025205,2]
[363194157,1748619139513,-760.22,0.00025205,2]
[363194158,1748619139524,-2783.11,0.00025205,2]
[363194159,1748619139535,-676.42,0.00025205,2]
[363194160,1748619139547,-734.54,0.00025205,2]
[363194161,1748619139561,-1264.47,0.00025205,2]
[363194162,1748619139572,-1663.09,0.00025205,2]
[363194163,1748619139584,-450.49,0.00025205,2]
[363194164,1748619139595,-1803.22,0.00025205,2]
[363194165,1748619139605,-6908.64,0.00025205,2]
[363194166,1748619139616,-420.0,0.00025205,2]
[363194167,1748619139627,-807.7,0.00025205,2]
[363194168,1748619139638,-3069.28,0.00025205,2]
[363194169,1748619139649,-466.47,0.00025205,2]
[363194170,1748619139660,-420.0,0.00025205,2]
[363194171,1748619139671,-420.0,0.00025205,2]
[363194172,1748619139682,-151.0,0.00025205,2]
[363194173,1748619139692,-150.0,0.00025225,2]
[363194174,1748619139702,-150.0,0.00025225,2]
[363194175,1748619139712,-157.819929,0.00025225,2]
[363194176,1748619139723,-980.858598,0.00025225,2]
[363194177,1748619139733,-980.858598,0.00025225,2]
[363194178,1748619139744,-1078.45113,0.00025225,2]
[363194179,1748619139754,-1078.45113,0.00025225,2]
[363194180,1748619139765,-3500.0,0.0002526,2]
[363194181,1748619139775,-500.0,0.0002527,2]
[363194182,1748619139785,-500.0,0.00025272,2]
[363194183,1748619139795,-4049.5936825,0.00025279,12]
[363194184,1748619139809,-2000.0,0.0002529,2]
[363194185,1748619139823,-280.0,0.000253,10]
[363194186,1748619139833,-500.0,0.00025304,2]
[363194187,1748619139843,-1500.0,0.00025351,2]
[363194188,1748619139854,-2000.0,0.00025355,2]
[363194189,1748619139864,-1500.0,0.00025367,2]
[363194190,1748619139875,-548.05708981,0.00025414,2]
[363194191,1748619139884,-150.0,0.00025425,2]
[363194192,1748619139895,-150.0,0.00025425,2]
[363194193,1748619139907,-980.858598,0.00025425,2]
[363194194,1748619139916,-980.858598,0.00025425,2]
[363194195,1748619139926,-1078.45113,0.00025425,2]
[363194196,1748619139936,-1078.45113,0.00025425,2]
[363194197,1748619139947,-2000.0,0.00025433,2]
[363194198,1748619139957,-500.0,0.0002545,2]
[363194199,1748619139966,-823.0,0.00025456,2]
[363194200,1748619139977,-168.3888056,0.00025463,2]
[363194201,1748619139987,-1913.1786432,0.00025466,2]
[363194202,1748619139997,-1073.05,0.00025475,13]
[363194203,1748619140007,-420.0,0.00025479,2]
[363194204,1748619140017,-420.0,0.00025479,2]
[363194205,1748619140027,-579.42,0.00025479,2]
[363194206,1748619140036,-441.8,0.00025479,2]
[363194207,1748619140046,-591.36,0.00025479,2]
[363194208,1748619140057,-468.16,0.00025479,2]
[363194209,1748619140067,-451.1,0.00025479,2]
[363194210,1748619140076,-420.3,0.00025479,2]
[363194211,1748619140086,-420.0,0.00025479,2]
[363194212,1748619140096,-853.41,0.00025479,2]
[363194213,1748619140105,-420.0,0.00025479,2]
[363194214,1748619140116,-525.07,0.00025479,2]
[363194215,1748619140125,-420.0,0.00025479,2]
[363194216,1748619140135,-502.76,0.00025479,2]
[363194217,1748619140145,-1167.56,0.00025479,2]
[363194218,1748619140155,-769.78,0.00025479,2]
[363194219,1748619140165,-499.23,0.00025479,2]
[363194220,1748619140175,-420.0,0.00025479,2]
[363194221,1748619140184,-531.83,0.00025479,2]
[363194222,1748619140194,-420.0,0.00025479,2]
[363194223,1748619140204,-479.53,0.00025479,2]
[363194224,1748619140215,-753.24,0.00025479,2]
[363194225,1748619140225,-265.73,0.00025479,2]
[363194226,1748619140235,-476.72,0.00025479,2]
[363194227,1748619140244,-420.0,0.00025479,2]
[363194228,1748619140254,-571.1,0.00025479,2]
[363194229,1748619140264,-420.0,0.00025479,2]
[363194230,1748619140274,-908.97,0.00025479,2]
[363194231,1748619140283,-420.0,0.00025479,2]
[363194232,1748619140293,-420.0,0.00025479,2]
[363194233,1748619140304,-432.46,0.00025479,2]
[363194234,1748619140314,-420.0,0.00025479,2]
[363194235,1748619140324,-420.0,0.00025479,2]
[363194236,1748619140334,-420.0,0.00025479,2]
[363194237,1748619140344,-420.0,0.00025479,2]
[363194238,1748619140354,-420.0,0.00025479,2]
[363194239,1748619140364,-2098.6,0.00025479,2]
[363194240,1748619140374,-490.07,0.00025479,2]
[363194241,1748619140384,-770.69,0.00025479,2]
[363194242,1748619140394,-420.0,0.00025479,2]
[363194243,1748619140404,-890.15,0.00025479,2]
[363194244,1748619140414,-420.86,0.00025479,2]
[363194245,1748619140424,-426.87,0.00025479,2]
[363194246,1748619140434,-424.91,0.00025479,2]
[363194247,1748619140444,-429.06,0.00025479,2]
[363194248,1748619140454,-420.0,0.00025479,2]
[363194249,1748619140464,-758.53,0.00025479,2]
[363194250,1748619140474,-772.94,0.00025479,2]
[363194251,1748619140484,-420.0,0.00025479,2]
[363194252,1748619140494,-427.85,0.00025479,2]
[363194253,1748619140503,-420.0,0.00025479,2]
[363194254,1748619140514,-348.63042864,0.00025479,2]
[363194255,1748619140524,-456.87,0.00025479,2]
[363194256,1748619140534,-420.0,0.00025479,2]
[363194257,1748619140545,-420.0,0.00025479,2]
[363194258,1748619140556,-420.0,0.00025479,2]
[363194259,1748619140566,-420.0,0.00025479,2]
[363194260,1748619140576,-420.0,0.00025479,2]
[363194261,1748619140586,-420.0,0.00025479,2]
[363194262,1748619140596,-420.0,0.00025479,2]
[363194263,1748619140607,-777.89,0.00025479,2]
[363194264,1748619140617,-1819.65,0.00025479,2]
[363194265,1748619140627,-863.65,0.00025479,2]
[363194266,1748619140637,-1212.65,0.00025479,2]
[363194267,1748619140647,-1175.81,0.00025479,2]
[363194268,1748619140658,-553.05,0.00025479,2]
[363194269,1748619140668,-420.0,0.00025479,2]
[363194270,1748619140678,-796.08,0.00025479,2]
[363194271,1748619140688,-523.03,0.00025479,2]
[363194272,1748619140698,-501.69,0.00025479,2]
[363194273,1748619140708,-1811.35,0.00025479,2]
[363194274,1748619140718,-420.0,0.00025479,2]
[363194275,1748619140729,-420.0,0.00025479,2]
[363194276,1748619140739,-822.17,0.00025479,2]
[363194277,1748619140749,-496.62,0.00025479,2]
[363194278,1748619140759,-641.0,0.00025479,2]
[363194279,1748619140770,-847.29,0.00025479,2]
[363194280,1748619140780,-420.0,0.00025479,2]
[363194281,1748619140791,-420.0,0.00025479,2]
[363194282,1748619140801,-1102.55,0.00025479,2]
[363194283,1748619140815,-443.43,0.00025479,2]
[363194284,1748619140826,-420.0,0.00025479,2]
[363194285,1748619140837,-443.13,0.00025479,2]
[363194286,1748619140847,-751.91,0.00025479,2]
[363194287,1748619140859,-420.0,0.00025479,2]
[363194288,1748619140868,-438.16769462,0.00025479,2]
[363194289,1748619140879,-420.0,0.00025479,2]
[363194290,1748619140889,-518.42,0.00025479,2]
[363194291,1748619140901,-1199.0,0.00025479,2]
[363194292,1748619140910,-841.83,0.00025479,2]
[363194293,1748619140921,-1711.43,0.00025479,2]
[363194294,1748619140930,-508.53,0.00025479,2]
[363194295,1748619140940,-948.67,0.00025479,2]
[363194296,1748619140950,-420.0,0.00025479,2]
[363194297,1748619140959,-610.77,0.00025479,2]
[363194298,1748619140969,-2171.03,0.00025479,2]
[363194299,1748619140979,-420.0,0.00025479,2]
[363194300,1748619140988,-572.48,0.00025479,2]
[363194301,1748619140998,-945.97,0.00025479,2]
[363194302,1748619141008,-1319.71,0.00025479,2]
[363194303,1748619141018,-456.76,0.00025479,2]
[363194304,1748619141028,-1456.24,0.00025479,2]
[363194305,1748619141038,-636.09,0.00025479,2]
[363194306,1748619141047,-743.92,0.00025479,2]
[363194307,1748619141060,-853.5,0.00025479,2]
[363194308,1748619141069,-1258.56,0.00025479,2]
[363194309,1748619141079,-652.14,0.00025479,2]
[363194310,1748619141089,-1419.49,0.00025479,2]
[363194311,1748619141099,-569.93,0.00025479,2]
[363194312,1748619141109,-584.74,0.00025479,2]
[363194313,1748619141119,-755.51,0.00025479,2]
[363194314,1748619141129,-582.04,0.00025479,2]
[363194315,1748619141139,-420.0,0.00025479,2]
[363194316,1748619141149,-420.0,0.00025479,2]
[363194317,1748619141159,-420.0,0.00025479,2]
[363194318,1748619141169,-781.6,0.00025479,2]
[363194319,1748619141179,-1041.01,0.00025479,2]
[363194320,1748619141189,-1369.52,0.00025479,2]
[363194321,1748619141200,-474.65,0.00025479,2]
[363194322,1748619141209,-463.6,0.00025479,2]
[363194323,1748619141219,-1379.11,0.00025479,2]
[363194324,1748619141229,-420.0,0.00025479,2]
[363194325,1748619141239,-666.7,0.00025479,2]
[363194326,1748619141250,-1319.43,0.00025479,2]
[363194327,1748619141260,-576.82,0.00025479,2]
[363194328,1748619141269,-693.89,0.00025479,2]
[363194329,1748619141280,-741.8,0.00025479,2]
[363194330,1748619141290,-561.65,0.00025479,2]
[363194331,1748619141299,-1160.92,0.00025479,2]
[363194332,1748619141309,-472.93,0.00025479,2]
[363194333,1748619141320,-1207.82,0.00025479,2]
[363194334,1748619141330,-1166.17,0.00025479,2]
[363194335,1748619141339,-1168.26,0.00025479,2]
[363194336,1748619141349,-420.0,0.00025479,2]
[363194337,1748619141359,-420.0,0.00025479,2]
[363194338,1748619141369,-466.98,0.00025479,2]
[363194339,1748619141379,-784.43,0.00025479,2]
[363194340,1748619141389,-723.56,0.00025479,2]
[363194341,1748619141399,-1364.89,0.00025479,2]
[363194342,1748619141409,-801.75,0.00025479,2]
[363194343,1748619141419,-604.61,0.00025479,2]
[363194344,1748619141429,-587.51,0.00025479,2]
[363194345,1748619141439,-635.16,0.00025479,2]
[363194346,1748619141449,-1137.25,0.00025479,2]
[363194347,1748619141459,-786.55,0.00025479,2]
[363194348,1748619141469,-862.94,0.00025479,2]
[363194349,1748619141479,-420.0,0.00025479,2]
[363194350,1748619141490,-523.95,0.00025479,2]
[363194351,1748619141500,-1160.03,0.00025479,2]
[363194352,1748619141511,-673.65,0.00025479,2]
[363194353,1748619141521,-931.25,0.00025479,2]
[363194354,1748619141530,-420.0,0.00025479,2]
[363194355,1748619141540,-552.42,0.00025479,2]
[363194356,1748619141550,-459.7,0.00025479,2]
[363194357,1748619141562,-1724.07,0.00025479,2]
[363194358,1748619141572,-420.0,0.00025479,2]
[363194359,1748619141582,-600.48,0.00025479,2]
[363194360,1748619141592,-726.29,0.00025479,2]
[363194361,1748619141603,-472.86,0.00025479,2]
[363194362,1748619141613,-1073.36,0.00025479,2]
[363194363,1748619141838,-420.0,0.00025479,2]
[363194364,1748619141849,-832.22,0.00025479,2]
[363194365,1748619141859,-576.09,0.00025479,2]
[363194366,1748619141869,-1371.43,0.00025479,2]
[363194367,1748619141879,-1079.44,0.00025479,2]
[363194368,1748619141890,-538.33,0.00025479,2]
[363194369,1748619141900,-971.8,0.00025479,2]
[363194370,1748619141909,-590.55,0.00025479,2]
[363194371,1748619141919,-476.32,0.00025479,2]
[363194372,1748619141931,-550.23,0.00025479,2]
[363194373,1748619141943,-523.75,0.00025479,2]
[363194374,1748619141953,-420.0,0.00025479,2]
[363194375,1748619141963,-420.0,0.00025479,2]
[363194376,1748619141973,-2381.24,0.00025479,2]
[363194377,1748619141983,-1073.24,0.00025479,2]
[363194378,1748619141993,-659.08,0.00025479,2]
[363194379,1748619142002,-535.46,0.00025479,2]
[363194380,1748619142012,-420.0,0.00025479,2]
[363194381,1748619142022,-300.2767849,0.00025479,2]
[363194382,1748619142031,-569.05,0.00025479,2]
[363194383,1748619142044,-420.0,0.00025479,2]
[363194384,1748619142059,-808.94,0.00025479,2]
[363194385,1748619142071,-1940.81,0.00025479,2]
[363194386,1748619142080,-463.09,0.00025479,2]
[363194387,1748619142090,-627.54,0.00025479,2]
[363194388,1748619142099,-420.0,0.00025479,2]
[363194389,1748619142109,-1123.75,0.00025479,2]
[363194390,1748619142118,-487.89,0.00025479,2]
[363194391,1748619142127,-539.2,0.00025479,2]
[363194392,1748619142137,-420.0,0.00025479,2]
[363194393,1748619142146,-420.0,0.00025479,2]
[363194394,1748619142155,-1124.04,0.00025479,2]
[363194395,1748619142164,-553.55,0.00025479,2]
[363194396,1748619142174,-1448.39,0.00025479,2]
[363194397,1748619142184,-1053.3,0.00025479,2]
[363194398,1748619142193,-584.13,0.00025479,2]
[363194399,1748619142203,-1192.82,0.00025479,2]
[363194400,1748619142213,-613.48,0.00025479,2]
[363194401,1748619142223,-420.0,0.00025479,2]
[363194402,1748619142232,-491.19,0.00025479,2]
[363194403,1748619142242,-466.46,0.00025479,2]
[363194404,1748619142252,-561.99,0.00025479,2]
[363194405,1748619142262,-1678.06,0.00025479,2]
[363194406,1748619142271,-420.0,0.00025479,2]
[363194407,1748619142281,-420.0,0.00025479,2]
[363194408,1748619142291,-1400.08,0.00025479,2]
[363194409,1748619142301,-600.46,0.00025479,2]
[363194410,1748619142312,-626.74,0.00025479,2]
[363194411,1748619142322,-729.19,0.00025479,2]
[363194412,1748619142331,-1178.79,0.00025479,2]
[363194413,1748619142341,-849.19,0.00025479,2]
[363194414,1748619142351,-1833.03,0.00025479,2]
[363194415,1748619142361,-558.24,0.00025479,2]
[363194416,1748619142371,-633.87,0.00025479,2]
[363194417,1748619142382,-420.0,0.00025479,2]
[363194418,1748619142392,-465.46,0.00025479,2]
[363194419,1748619142402,-420.0,0.00025479,2]
[363194420,1748619142412,-1085.24,0.00025479,2]
[363194421,1748619142422,-3634.58,0.00025479,2]
[363194422,1748619142432,-2016.38,0.00025479,2]
[363194423,1748619142442,-609.8,0.00025479,2]
[363194424,1748619142451,-260.64904257,0.00025479,2]
[363194425,1748619142461,-1168.36,0.00025479,2]
[363194426,1748619142472,-5361.86,0.00025479,2]
[363194427,1748619142481,-2127.16,0.00025479,2]
[363194428,1748619142491,-1484.06,0.00025479,2]
[363194429,1748619142501,-420.0,0.00025479,2]
[363194430,1748619142512,-1109.67,0.00025479,2]
[363194431,1748619142522,-614.8,0.00025479,2]
[363194432,1748619142532,-575.02,0.00025479,2]
[363194433,1748619142542,-562.44,0.00025479,2]
[363194434,1748619142553,-674.8,0.00025479,2]
[363194435,1748619142563,-1824.08,0.00025479,2]
[363194436,1748619142573,-420.0,0.00025479,2]
[363194437,1748619142583,-420.0,0.00025479,2]
[363194438,1748619142594,-904.81,0.00025479,2]
[363194439,1748619142604,-490.58,0.00025479,2]
[363194440,1748619142615,-7075.98,0.00025479,2]
[363194441,1748619142624,-723.21,0.00025479,2]
[363194442,1748619142634,-420.0,0.00025479,2]
[363194443,1748619142644,-1561.66,0.00025479,2]
[363194444,1748619142654,-9812.16,0.00025479,2]
[363194445,1748619142663,-1096.87,0.00025479,2]
[363194446,1748619142673,-1075.43,0.00025479,2]
[363194447,1748619142683,-622.82,0.00025479,2]
[363194448,1748619142693,-1429.73,0.00025479,2]
[363194449,1748619142704,-915.42,0.00025479,2]
[363194450,1748619142716,-11863.32,0.00025479,2]
[363194451,1748619142727,-1946.94,0.00025479,2]
[363194452,1748619142739,-594.91,0.00025479,2]
[363194453,1748619142751,-1167.97,0.00025479,2]
[363194454,1748619142762,-797.36,0.00025479,2]
[363194455,1748619142772,-524.77,0.00025479,2]
[363194456,1748619142783,-5682.0,0.00025479,2]
[363194457,1748619142794,-1550.77,0.00025479,2]
[363194458,1748619142803,-974.63,0.00025479,2]
[363194459,1748619142818,-655.87,0.00025479,2]
[363194460,1748619142827,-702.81,0.00025479,2]
[363194461,1748619142837,-600.66,0.00025479,2]
[363194462,1748619142847,-1024.75,0.00025479,2]
[363194463,1748619142858,-609.69,0.00025479,2]
[363194464,1748619142869,-420.0,0.00025479,2]
[363194465,1748619142879,-1076.37,0.00025479,2]
[363194466,1748619142893,-464.14,0.00025479,2]
[363194467,1748619142903,-420.0,0.00025479,2]
[363194468,1748619142913,-1708.68,0.00025479,2]
[363194469,1748619142923,-476.72,0.00025479,2]
[363194470,1748619142933,-726.29,0.00025479,2]
[363194471,1748619142943,-1013.34,0.00025479,2]
[363194472,1748619142953,-850.36,0.00025479,2]
[363194473,1748619142963,-829.87,0.00025479,2]
[363194474,1748619142973,-9498.11,0.00025479,2]
[363194475,1748619142982,-997.73,0.00025479,2]
[363194476,1748619142992,-1568.21,0.00025479,2]
[363194477,1748619143003,-717.62,0.00025479,2]
[363194478,1748619143013,-862.79,0.00025479,2]
[363194479,1748619143023,-2137.81,0.00025479,2]
[363194480,1748619143034,-657.91,0.00025479,2]
[363194481,1748619143044,-985.32,0.00025479,2]
[363194482,1748619143054,-420.0,0.00025479,2]
[363194483,1748619143065,-420.0,0.00025479,2]
[363194484,1748619143075,-541.52,0.00025479,2]
[363194485,1748619143085,-1399.41,0.00025479,2]
[363194486,1748619143095,-1150.73,0.00025479,2]
[363194487,1748619143105,-420.0,0.00025479,2]
[363194488,1748619143116,-2296.95,0.00025479,2]
[363194489,1748619143125,-682.72,0.00025479,2]
[363194490,1748619143136,-795.59,0.00025479,2]
[363194491,1748619143146,-575.16,0.00025479,2]
[363194492,1748619143156,-3116.89,0.00025479,2]
[363194493,1748619143165,-1061.77,0.00025479,2]
[363194494,1748619143176,-1233.85,0.00025479,2]
[363194495,1748619143186,-420.0,0.00025479,2]
[363194496,1748619143196,-11481.25,0.00025479,2]
[363194497,1748619143206,-426.85,0.00025479,2]
[363194498,1748619143216,-1096.82,0.00025479,2]
[363194499,1748619143227,-857.17,0.00025479,2]
[363194500,1748619143237,-1626.19,0.00025479,2]
[363194501,1748619143247,-420.0,0.00025479,2]
[363194502,1748619143257,-634.02,0.00025479,2]
[363194503,1748619143267,-1283.49,0.00025479,2]
[363194504,1748619143278,-1507.45,0.00025479,2]
[363194505,1748619143288,-532.67,0.00025479,2]
[363194506,1748619143297,-441.96,0.00025479,2]
[363194507,1748619143310,-1018.57,0.00025479,2]
[363194508,1748619143319,-1122.87,0.00025479,2]
[363194509,1748619143328,-3197.32,0.00025479,2]
[363194510,1748619143338,-2066.87,0.00025479,2]
[363194511,1748619143347,-489.48,0.00025479,2]
[363194512,1748619143358,-461.31,0.00025479,2]
[363194513,1748619143368,-429.62,0.00025479,2]
[363194514,1748619143379,-3670.01,0.00025479,2]
[363194515,1748619143389,-805.58,0.00025479,2]
[363194516,1748619143399,-1386.9,0.00025479,2]
[363194517,1748619143409,-894.1,0.00025479,2]
[363194518,1748619143419,-2960.24,0.00025479,2]
[363194519,1748619143428,-1963.11,0.00025479,2]
[363194520,1748619143437,-906.34,0.00025479,2]
[363194521,1748619143446,-7808.56,0.00025479,2]
[363194522,1748619143456,-1068.95,0.00025479,2]
[363194523,1748619143465,-975.57,0.00025479,2]
[363194524,1748619143475,-1446.02,0.00025479,2]
[363194525,1748619143485,-1309.89,0.00025479,2]
[363194526,1748619143495,-5878.54,0.00025479,2]
[363194527,1748619143506,-591.35,0.00025479,2]
[363194528,1748619143516,-4452.28,0.00025479,2]
[363194529,1748619143526,-982.46,0.00025479,2]
[363194530,1748619143536,-8491.51,0.00025479,2]
[363194531,1748619143546,-958.4,0.00025479,2]
[363194532,1748619143559,-139506.04,0.00025479,2]